[Event "December 5 Late 2023"]
[Site "https://www.chess.com"]
[Date "2023.12.05"]
[Round "2"]
[White "Rustemov, Alexander"]
[Black "Urbina Perez, Juan Antonio"]
[Result "1-0"]
[Board "50"]
[TimeControl "180+1"]
[WhiteFideId "4119002"]
[BlackFideId "2217368"]
[WhiteElo "2832"]
[BlackElo "2528"]
[WhiteTeam "RUS"]
[BlackTeam "ESP"]
[WhiteClock "0:01:15"]
[BlackClock "0:00:11"]

1. d4 {[%clk 0:03:00]}  Nf6 {[%clk 0:02:59]} 2. c4 {[%clk 0:03:01]}  d6 {[%clk 0:03:00]} 3. Nf3 {[%clk 0:03:01]}  g6 {[%clk 0:02:59]} 4. g3 {[%clk 0:03:01]}  Bg7 {[%clk 0:02:58]} 5. Bg2 {[%clk 0:03:02]}  O-O {[%clk 0:02:59]} 6. Nc3 {[%clk 0:03:03]}  Bf5 {[%clk 0:02:59]} 7. Nh4 {[%clk 0:03:01]}  Bc8 {[%clk 0:02:56]} 8. O-O {[%clk 0:03:02]}  c5 {[%clk 0:02:56]} 9. Nf3 {[%clk 0:03:00]}  Nc6 {[%clk 0:02:54]} 10. dxc5 {[%clk 0:03:00]}  dxc5 {[%clk 0:02:54]} 11. Bf4 {[%clk 0:03:00]}  Bf5 {[%clk 0:02:41]} 12. Ne5 {[%clk 0:03:00]}  Nxe5 {[%clk 0:02:31]} 13. Bxe5 {[%clk 0:03:01]}  Qb6 {[%clk 0:02:29]} 14. Qb3 {[%clk 0:02:52]}  Nd7 {[%clk 0:02:00]} 15. Qxb6 {[%clk 0:02:41]}  Nxb6 {[%clk 0:02:01]} 16. Bxg7 {[%clk 0:02:39]}  Kxg7 {[%clk 0:02:02]} 17. Bxb7 {[%clk 0:02:30]}  Rab8 {[%clk 0:02:02]} 18. Ba6 {[%clk 0:02:31]}  Rfd8 {[%clk 0:01:56]} 19. Rfd1 {[%clk 0:02:27]}  Bc2 {[%clk 0:01:47]} 20. Rxd8 {[%clk 0:02:25]}  Rxd8 {[%clk 0:01:48]} 21. Rc1 {[%clk 0:02:24]}  Bf5 {[%clk 0:01:46]} 22. Rd1 {[%clk 0:02:18]}  Rd6 {[%clk 0:01:34]} 23. Rxd6 {[%clk 0:02:15]}  exd6 {[%clk 0:01:35]} 24. b3 {[%clk 0:02:12]}  Bd7 {[%clk 0:01:32]} 25. Bb7 {[%clk 0:02:11]}  f5 {[%clk 0:01:30]} 26. f4 {[%clk 0:02:10]}  Kf6 {[%clk 0:01:30]} 27. Kf2 {[%clk 0:02:11]}  a5 {[%clk 0:01:28]} 28. e4 {[%clk 0:02:04]}  fxe4 {[%clk 0:01:27]} 29. Bxe4 {[%clk 0:02:00]}  a4 {[%clk 0:01:24]} 30. Ke3 {[%clk 0:01:54]}  axb3 {[%clk 0:01:24]} 31. axb3 {[%clk 0:01:54]}  Be6 {[%clk 0:01:21]} 32. Bf3 {[%clk 0:01:48]}  Nd7 {[%clk 0:01:18]} 33. g4 {[%clk 0:01:46]}  Nb6 {[%clk 0:01:08]} 34. g5+ {[%clk 0:01:45]}  Ke7 {[%clk 0:01:07]} 35. h4 {[%clk 0:01:45]}  Nd7 {[%clk 0:01:00]} 36. h5 {[%clk 0:01:41]}  Nb8 {[%clk 0:00:59]} 37. h6 {[%clk 0:01:37]}  Na6 {[%clk 0:00:58]} 38. Ne4 {[%clk 0:01:35]}  d5 {[%clk 0:00:51]} 39. cxd5 {[%clk 0:01:27]}  Bxd5 {[%clk 0:00:52]} 40. Nf6 {[%clk 0:01:27]}  Bxb3 {[%clk 0:00:50]} 41. Nxh7 {[%clk 0:01:27]}  Nc7 {[%clk 0:00:36]} 42. Nf6 {[%clk 0:01:26]}  Kf7 {[%clk 0:00:31]} 43. Ng4 {[%clk 0:01:26]}  Ne6 {[%clk 0:00:25]} 44. Ne5+ {[%clk 0:01:27]}  Kg8 {[%clk 0:00:23]} 45. Nxg6 {[%clk 0:01:27]}  c4 {[%clk 0:00:24]} 46. Bd5 {[%clk 0:01:25]}  c3 {[%clk 0:00:15]} 47. Bxb3 {[%clk 0:01:24]}  c2 {[%clk 0:00:13]} 48. Bxe6+ {[%clk 0:01:18]}  Kh7 {[%clk 0:00:14]} 49. Kd2 {[%clk 0:01:18]}  Kxg6 {[%clk 0:00:10]} 50. Kxc2 {[%clk 0:01:18]}  Kh7 {[%clk 0:00:11]} 51. Bf5+ {[%clk 0:01:17]}  Kh8 {[%clk 0:00:12]} 52. g6 {[%clk 0:01:16]}  Kg8 {[%clk 0:00:13]} 53. Be6+ {[%clk 0:01:15]}  Kh8 {[%clk 0:00:11]} 54. g7+ {[%clk 0:01:15]} 1-0

[Event "December 5 Late 2023"]
[Site "https://www.chess.com"]
[Date "2023.12.05"]
[Round "2"]
[White "Rogov, Matfey"]
[Black "Yuan, Qingyu"]
[Result "0-1"]
[Board "52"]
[TimeControl "180+1"]
[WhiteFideId "44191308"]
[BlackFideId "8609772"]
[WhiteElo "2522"]
[BlackElo "2825"]
[WhiteTeam "RUS"]
[BlackTeam "CHN"]
[WhiteClock "0:00:02"]
[BlackClock "0:00:21"]

1. e4 {[%clk 0:03:00]}  e5 {[%clk 0:02:58]} 2. Nf3 {[%clk 0:03:00]}  Nc6 {[%clk 0:02:58]} 3. Bb5 {[%clk 0:02:56]}  Nf6 {[%clk 0:02:58]} 4. O-O {[%clk 0:02:55]}  Nxe4 {[%clk 0:02:58]} 5. Qe1 {[%clk 0:02:54]}  Nd6 {[%clk 0:02:48]} 6. Bxc6 {[%clk 0:02:53]}  dxc6 {[%clk 0:02:48]} 7. Qxe5+ {[%clk 0:02:53]}  Qe7 {[%clk 0:02:24]} 8. Qa5 {[%clk 0:02:52]}  Be6 {[%clk 0:02:20]} 9. d3 {[%clk 0:02:46]}  h6 {[%clk 0:02:11]} 10. Nd4 {[%clk 0:02:42]}  g6 {[%clk 0:02:03]} 11. Nxe6 {[%clk 0:02:41]}  fxe6 {[%clk 0:02:02]} 12. Bf4 {[%clk 0:02:10]}  Bg7 {[%clk 0:02:02]} 13. Nc3 {[%clk 0:02:05]}  O-O {[%clk 0:02:00]} 14. Bg3 {[%clk 0:01:53]}  b6 {[%clk 0:01:41]} 15. Qa4 {[%clk 0:01:48]}  c5 {[%clk 0:01:37]} 16. Rae1 {[%clk 0:01:45]}  Rae8 {[%clk 0:01:26]} 17. Qc6 {[%clk 0:01:37]}  Qd8 {[%clk 0:01:22]} 18. Re2 {[%clk 0:01:12]}  Nf5 {[%clk 0:00:31]} 19. Rxe6 {[%clk 0:00:48]}  Rxe6 {[%clk 0:00:31]} 20. Qxe6+ {[%clk 0:00:48]}  Kh7 {[%clk 0:00:32]} 21. Qd5 {[%clk 0:00:20]}  Qe7 {[%clk 0:00:26]} 22. Qe4 {[%clk 0:00:16]}  Qd7 {[%clk 0:00:26]} 23. Re1 {[%clk 0:00:12]}  Nd4 {[%clk 0:00:22]} 24. Qe7 {[%clk 0:00:10]}  Rf7 {[%clk 0:00:23]} 25. Qxd7 {[%clk 0:00:10]}  Rxd7 {[%clk 0:00:24]} 26. Rc1 {[%clk 0:00:06]}  b5 {[%clk 0:00:24]} 27. Kf1 {[%clk 0:00:05]}  b4 {[%clk 0:00:24]} 28. Ne4 {[%clk 0:00:06]}  Rd5 {[%clk 0:00:24]} 29. c4 {[%clk 0:00:05]}  Rf5 {[%clk 0:00:24]} 30. f3 {[%clk 0:00:05]}  Ne6 {[%clk 0:00:23]} 31. Rc2 {[%clk 0:00:04]}  h5 {[%clk 0:00:22]} 32. Bxc7 {[%clk 0:00:04]}  Nxc7 {[%clk 0:00:21]} 33. Ke2 {[%clk 0:00:04]}  Ne6 {[%clk 0:00:22]} 34. Rc1 {[%clk 0:00:02]}  Bxb2 {[%clk 0:00:22]} 35. Rb1 {[%clk 0:00:02]}  Nf4+ {[%clk 0:00:22]} 36. Ke3 {[%clk 0:00:01]}  Bd4+ {[%clk 0:00:22]} 37. Kd2 {[%clk 0:00:02]}  Nxg2 {[%clk 0:00:21]} 38. a3 {[%clk 0:00:03]}  a5 {[%clk 0:00:21]} 39. axb4 {[%clk 0:00:03]}  axb4 {[%clk 0:00:20]} 40. h3 {[%clk 0:00:04]}  Nh4 {[%clk 0:00:20]} 41. Rf1 {[%clk 0:00:02]}  Kh6 {[%clk 0:00:20]} 42. Ke2 {[%clk 0:00:02]}  Ng2 {[%clk 0:00:21]} 43. Rb1 {[%clk 0:00:01]}  Nf4+ {[%clk 0:00:22]} 44. Kd2 {[%clk 0:00:02]}  Rf8 {[%clk 0:00:21]} 45. h4 {[%clk 0:00:01]}  Ng2 {[%clk 0:00:20]} 46. Rf1 {[%clk 0:00:02]}  Nxh4 {[%clk 0:00:20]} 47. f4 {[%clk 0:00:01]}  Nf5 {[%clk 0:00:20]} 48. Ng5 {[%clk 0:00:02]}  Ra8 {[%clk 0:00:20]} 49. Nf7+ {[%clk 0:00:02]}  Kg7 {[%clk 0:00:20]} 50. Ng5 {[%clk 0:00:02]}  Ra2+ {[%clk 0:00:20]} 51. Ke1 {[%clk 0:00:02]}  Bc3+ {[%clk 0:00:20]} 52. Kd1 {[%clk 0:00:02]}  Ne3+ {[%clk 0:00:20]} 53. Kc1 {[%clk 0:00:02]}  Ra1# {[%clk 0:00:21]} 0-1

[Event "December 5 Late 2023"]
[Site "https://www.chess.com"]
[Date "2023.12.05"]
[Round "2"]
[White "Petukhov, Dmitry"]
[Black "Gadimbayli, Abdulla"]
[Result "0-1"]
[Board "53"]
[TimeControl "180+1"]
[WhiteFideId "4142748"]
[BlackFideId "13404938"]
[WhiteElo "2521"]
[BlackElo "2819"]
[WhiteTeam "RUS"]
[BlackTeam "AZE"]
[WhiteClock "0:00:00"]
[BlackClock "0:00:33"]

1. e4 {[%clk 0:03:00]}  e5 {[%clk 0:02:56]} 2. Nf3 {[%clk 0:02:59]}  d5 {[%clk 0:02:56]} 3. Nxe5 {[%clk 0:02:59]}  Bd6 {[%clk 0:02:56]} 4. d4 {[%clk 0:02:57]}  dxe4 {[%clk 0:02:56]} 5. Be2 {[%clk 0:02:43]}  Bxe5 {[%clk 0:02:55]} 6. dxe5 {[%clk 0:02:43]}  Qxd1+ {[%clk 0:02:56]} 7. Bxd1 {[%clk 0:02:44]}  Nc6 {[%clk 0:02:57]} 8. Nc3 {[%clk 0:02:41]}  Bf5 {[%clk 0:02:56]} 9. O-O {[%clk 0:02:34]}  Nge7 {[%clk 0:02:55]} 10. Re1 {[%clk 0:02:32]}  O-O-O {[%clk 0:02:51]} 11. Bg5 {[%clk 0:02:32]}  Rd4 {[%clk 0:02:39]} 12. Ne2 {[%clk 0:02:12]}  Rd5 {[%clk 0:02:30]} 13. Ng3 {[%clk 0:02:01]}  Rxe5 {[%clk 0:02:23]} 14. f4 {[%clk 0:01:42]}  Re6 {[%clk 0:01:45]} 15. c3 {[%clk 0:01:27]}  f6 {[%clk 0:01:11]} 16. Bh4 {[%clk 0:01:20]}  Re8 {[%clk 0:01:10]} 17. Bb3 {[%clk 0:01:19]}  Rd6 {[%clk 0:01:10]} 18. Nxe4 {[%clk 0:01:17]}  Bxe4 {[%clk 0:01:07]} 19. Rxe4 {[%clk 0:01:18]}  Rd2 {[%clk 0:01:08]} 20. Rae1 {[%clk 0:01:08]}  Rxb2 {[%clk 0:01:05]} 21. Be6+ {[%clk 0:00:41]}  Kb8 {[%clk 0:01:05]} 22. Bf7 {[%clk 0:00:41]}  Rd8 {[%clk 0:01:05]} 23. Rxe7 {[%clk 0:00:41]}  Nxe7 {[%clk 0:01:06]} 24. Rxe7 {[%clk 0:00:42]}  Rd1+ {[%clk 0:01:06]} 25. Re1 {[%clk 0:00:38]}  Rxe1+ {[%clk 0:00:59]} 26. Bxe1 {[%clk 0:00:39]}  a5 {[%clk 0:01:00]} 27. h4 {[%clk 0:00:30]}  b5 {[%clk 0:00:56]} 28. g4 {[%clk 0:00:29]}  h6 {[%clk 0:00:56]} 29. g5 {[%clk 0:00:28]}  c5 {[%clk 0:00:44]} 30. gxh6 {[%clk 0:00:23]}  gxh6 {[%clk 0:00:45]} 31. Bf2 {[%clk 0:00:21]}  c4 {[%clk 0:00:40]} 32. a4 {[%clk 0:00:17]}  bxa4 {[%clk 0:00:33]} 33. Bxc4 {[%clk 0:00:17]}  a3 {[%clk 0:00:32]} 34. Bd4 {[%clk 0:00:13]}  a2 {[%clk 0:00:33]} 35. Bxa2 {[%clk 0:00:13]}  Rxa2 {[%clk 0:00:34]} 36. Bxf6 {[%clk 0:00:14]}  a4 {[%clk 0:00:34]} 37. f5 {[%clk 0:00:14]}  Kc8 {[%clk 0:00:34]} 38. Bg7 {[%clk 0:00:08]}  Kd7 {[%clk 0:00:34]} 39. Bxh6 {[%clk 0:00:00]}  Rc2 {[%clk 0:00:33]} 0-1

[Event "December 5 Late 2023"]
[Site "https://www.chess.com"]
[Date "2023.12.05"]
[Round "2"]
[White "Hadzovic, Amir"]
[Black "Ghasi, Ameet K"]
[Result "0-1"]
[Board "57"]
[TimeControl "180+1"]
[WhiteFideId "14402300"]
[BlackFideId "409200"]
[WhiteElo "2520"]
[BlackElo "2797"]
[WhiteTeam "BIH"]
[BlackTeam "ENG"]
[WhiteClock "0:00:03"]
[BlackClock "0:00:06"]

1. e4 {[%clk 0:02:59]}  g6 {[%clk 0:03:00]} 2. Nc3 {[%clk 0:02:59]}  Bg7 {[%clk 0:03:01]} 3. Bc4 {[%clk 0:02:59]}  d6 {[%clk 0:03:00]} 4. d3 {[%clk 0:02:58]}  e6 {[%clk 0:03:01]} 5. a3 {[%clk 0:02:58]}  a6 {[%clk 0:03:01]} 6. Ba2 {[%clk 0:02:59]}  c5 {[%clk 0:03:01]} 7. h4 {[%clk 0:03:00]}  h6 {[%clk 0:03:01]} 8. h5 {[%clk 0:03:00]}  g5 {[%clk 0:03:02]} 9. f4 {[%clk 0:03:01]}  gxf4 {[%clk 0:03:03]} 10. Bxf4 {[%clk 0:03:02]}  Nc6 {[%clk 0:03:03]} 11. Nf3 {[%clk 0:03:02]}  b5 {[%clk 0:03:02]} 12. Qd2 {[%clk 0:03:02]}  Rb8 {[%clk 0:03:00]} 13. Nd1 {[%clk 0:03:01]}  Nf6 {[%clk 0:02:58]} 14. O-O {[%clk 0:03:00]}  Nxh5 {[%clk 0:02:56]} 15. Bh2 {[%clk 0:03:01]}  Nd4 {[%clk 0:02:48]} 16. c3 {[%clk 0:02:58]}  Nxf3+ {[%clk 0:02:47]} 17. Rxf3 {[%clk 0:02:59]}  Rb6 {[%clk 0:02:44]} 18. Ne3 {[%clk 0:02:57]}  Qg5 {[%clk 0:02:39]} 19. Raf1 {[%clk 0:02:55]}  O-O {[%clk 0:02:39]} 20. Qf2 {[%clk 0:02:49]}  Qg6 {[%clk 0:02:10]} 21. Kh1 {[%clk 0:02:42]}  Be5 {[%clk 0:02:08]} 22. g4 {[%clk 0:02:22]}  Ng7 {[%clk 0:02:07]} 23. Bxe5 {[%clk 0:02:14]}  dxe5 {[%clk 0:02:08]} 24. Rh3 {[%clk 0:02:06]}  Qg5 {[%clk 0:02:01]} 25. Qf6 {[%clk 0:01:51]}  Ne8 {[%clk 0:01:50]} 26. Qf2 {[%clk 0:01:25]}  Kg7 {[%clk 0:01:47]} 27. Rh5 {[%clk 0:01:25]}  Qg6 {[%clk 0:01:45]} 28. Qh2 {[%clk 0:01:24]}  f6 {[%clk 0:01:44]} 29. Rg1 {[%clk 0:01:23]}  Nd6 {[%clk 0:01:36]} 30. Nf5+ {[%clk 0:01:23]}  Kf7 {[%clk 0:01:27]} 31. Rxh6 {[%clk 0:01:18]}  Qg5 {[%clk 0:01:27]} 32. Rh7+ {[%clk 0:00:50]}  Ke8 {[%clk 0:01:27]} 33. Ng7+ {[%clk 0:00:50]}  Kd8 {[%clk 0:01:27]} 34. Nxe6+ {[%clk 0:00:37]}  Bxe6 {[%clk 0:01:25]} 35. Bxe6 {[%clk 0:00:38]}  Qg6 {[%clk 0:00:41]} 36. Bf5 {[%clk 0:00:35]}  Qg5 {[%clk 0:00:33]} 37. Rd7+ {[%clk 0:00:33]}  Ke8 {[%clk 0:00:33]} 38. Qh7 {[%clk 0:00:28]}  Nf7 {[%clk 0:00:31]} 39. Rxf7 {[%clk 0:00:09]}  Rxf7 {[%clk 0:00:30]} 40. Bg6 {[%clk 0:00:10]}  Rb7 {[%clk 0:00:14]} 41. Qg8+ {[%clk 0:00:08]}  Kd7 {[%clk 0:00:15]} 42. Qxf7+ {[%clk 0:00:08]}  Kc6 {[%clk 0:00:15]} 43. Qe6+ {[%clk 0:00:08]}  Kc7 {[%clk 0:00:15]} 44. Qf7+ {[%clk 0:00:05]}  Kb6 {[%clk 0:00:14]} 45. Qe8 {[%clk 0:00:04]}  Qh4+ {[%clk 0:00:13]} 46. Kg2 {[%clk 0:00:04]}  Qxg4+ {[%clk 0:00:13]} 47. Kf2 {[%clk 0:00:05]}  Qh4+ {[%clk 0:00:08]} 48. Ke2 {[%clk 0:00:05]}  Qh2+ {[%clk 0:00:08]} 49. Kf1 {[%clk 0:00:06]}  Qxb2 {[%clk 0:00:07]} 50. Rg2 {[%clk 0:00:06]}  Qc1+ {[%clk 0:00:06]} 51. Kf2 {[%clk 0:00:06]}  Qxc3 {[%clk 0:00:07]} 52. Kg3 {[%clk 0:00:07]}  Qxd3+ {[%clk 0:00:07]} 53. Kh2 {[%clk 0:00:08]}  Qe3 {[%clk 0:00:07]} 54. Qe6+ {[%clk 0:00:08]}  Ka7 {[%clk 0:00:07]} 55. Bf5 {[%clk 0:00:08]}  Qh6+ {[%clk 0:00:06]} 56. Kg1 {[%clk 0:00:08]}  Qc1+ {[%clk 0:00:06]} 57. Kh2 {[%clk 0:00:07]}  Qf4+ {[%clk 0:00:06]} 58. Kg1 {[%clk 0:00:08]}  c4 {[%clk 0:00:06]} 59. Qd6 {[%clk 0:00:08]}  Qe3+ {[%clk 0:00:06]} 60. Kf1 {[%clk 0:00:07]}  c3 {[%clk 0:00:06]} 61. Qc5+ {[%clk 0:00:03]}  Qxc5 {[%clk 0:00:06]} 0-1

[Event "December 5 Late 2023"]
[Site "https://www.chess.com"]
[Date "2023.12.05"]
[Round "2"]
[White "Miladinovic, Igor"]
[Black "Gutierrez Olivares, Daniel"]
[Result "1-0"]
[Board "58"]
[TimeControl "180+1"]
[WhiteFideId "4203380"]
[BlackFideId "2264005"]
[WhiteElo "2795"]
[BlackElo "2516"]
[WhiteTeam "SRB"]
[BlackTeam "ESP"]
[WhiteClock "0:00:27"]
[BlackClock "0:00:00"]

1. d4 {[%clk 0:03:00]}  Nf6 {[%clk 0:02:59]} 2. Bg5 {[%clk 0:03:01]}  Nc6 {[%clk 0:02:49]} 3. e3 {[%clk 0:02:58]}  d6 {[%clk 0:02:49]} 4. Nf3 {[%clk 0:02:56]}  Bg4 {[%clk 0:02:43]} 5. h3 {[%clk 0:02:54]}  Bh5 {[%clk 0:02:42]} 6. Bxf6 {[%clk 0:02:52]}  gxf6 {[%clk 0:02:40]} 7. Be2 {[%clk 0:02:52]}  e5 {[%clk 0:02:36]} 8. d5 {[%clk 0:02:48]}  Ne7 {[%clk 0:02:33]} 9. Nc3 {[%clk 0:02:42]}  f5 {[%clk 0:02:22]} 10. Nh4 {[%clk 0:02:41]}  Bg6 {[%clk 0:02:14]} 11. g4 {[%clk 0:02:34]}  Bg7 {[%clk 0:01:57]} 12. gxf5 {[%clk 0:02:29]}  Nxf5 {[%clk 0:01:50]} 13. Bb5+ {[%clk 0:02:20]}  Kf8 {[%clk 0:01:48]} 14. Nxf5 {[%clk 0:02:20]}  Bxf5 {[%clk 0:01:47]} 15. Bd3 {[%clk 0:02:20]}  e4 {[%clk 0:00:58]} 16. Nxe4 {[%clk 0:02:16]}  Bxe4 {[%clk 0:00:55]} 17. Bxe4 {[%clk 0:02:15]}  Bxb2 {[%clk 0:00:55]} 18. Rb1 {[%clk 0:02:16]}  Bc3+ {[%clk 0:00:54]} 19. Ke2 {[%clk 0:02:16]}  Qh4 {[%clk 0:00:53]} 20. Qd3 {[%clk 0:02:14]}  Ba5 {[%clk 0:00:47]} 21. Rbg1 {[%clk 0:02:08]}  Re8 {[%clk 0:00:39]} 22. Rg4 {[%clk 0:02:07]}  Qf6 {[%clk 0:00:20]} 23. Bxh7 {[%clk 0:02:02]}  Qc3 {[%clk 0:00:09]} 24. h4 {[%clk 0:01:25]}  Re5 {[%clk 0:00:08]} 25. Qxc3 {[%clk 0:00:48]}  Bxc3 {[%clk 0:00:08]} 26. Bd3 {[%clk 0:00:41]}  Rxd5 {[%clk 0:00:08]} 27. Rb1 {[%clk 0:00:38]}  b6 {[%clk 0:00:07]} 28. Rc4 {[%clk 0:00:38]}  Rc5 {[%clk 0:00:07]} 29. Rxc5 {[%clk 0:00:35]}  dxc5 {[%clk 0:00:08]} 30. Rh1 {[%clk 0:00:34]}  Rh5 {[%clk 0:00:05]} 31. Kf3 {[%clk 0:00:30]}  Kg7 {[%clk 0:00:03]} 32. Kg4 {[%clk 0:00:28]}  Kh6 {[%clk 0:00:03]} 33. Bf5 {[%clk 0:00:27]}  Bf6 {[%clk 0:00:02]} 34. f4 {[%clk 0:00:26]}  Be7 {[%clk 0:00:00]} 35. e4 {[%clk 0:00:27]} 1-0

[Event "December 5 Late 2023"]
[Site "https://www.chess.com"]
[Date "2023.12.05"]
[Round "2"]
[White "Budisavljevic, Luka"]
[Black "Reprintsev, Alexander"]
[Result "1-0"]
[Board "60"]
[TimeControl "180+1"]
[WhiteFideId "960047"]
[BlackFideId "14100541"]
[WhiteElo "2780"]
[BlackElo "2510"]
[WhiteTeam "SRB"]
[BlackTeam "UKR"]
[WhiteClock "0:01:10"]
[BlackClock "0:00:29"]

1. d4 {[%clk 0:03:00]}  d5 {[%clk 0:02:54]} 2. Nf3 {[%clk 0:03:00]}  Nc6 {[%clk 0:02:54]} 3. c4 {[%clk 0:03:01]}  e5 {[%clk 0:02:53]} 4. dxe5 {[%clk 0:02:55]}  d4 {[%clk 0:02:53]} 5. a3 {[%clk 0:02:55]}  g6 {[%clk 0:02:52]} 6. Bg5 {[%clk 0:02:48]}  Qd7 {[%clk 0:02:46]} 7. Nbd2 {[%clk 0:02:40]}  h6 {[%clk 0:02:46]} 8. Bf6 {[%clk 0:02:27]}  Nxf6 {[%clk 0:02:42]} 9. exf6 {[%clk 0:02:28]}  Qe6 {[%clk 0:02:19]} 10. Nb3 {[%clk 0:02:28]}  Qxf6 {[%clk 0:02:15]} 11. Nbxd4 {[%clk 0:02:26]}  Bg7 {[%clk 0:02:15]} 12. e3 {[%clk 0:02:26]}  Bg4 {[%clk 0:02:00]} 13. Be2 {[%clk 0:02:18]}  Nxd4 {[%clk 0:01:50]} 14. Qxd4 {[%clk 0:01:59]}  Qxd4 {[%clk 0:01:38]} 15. Nxd4 {[%clk 0:01:57]}  Bxe2 {[%clk 0:01:38]} 16. Kxe2 {[%clk 0:01:58]}  O-O-O {[%clk 0:01:34]} 17. Rad1 {[%clk 0:01:49]}  c5 {[%clk 0:01:34]} 18. Nb5 {[%clk 0:01:48]}  Bxb2 {[%clk 0:01:29]} 19. Nxa7+ {[%clk 0:01:43]}  Kb8 {[%clk 0:01:28]} 20. Nb5 {[%clk 0:01:43]}  f5 {[%clk 0:01:19]} 21. h3 {[%clk 0:01:40]}  Rhe8 {[%clk 0:01:15]} 22. g4 {[%clk 0:01:33]}  f4 {[%clk 0:01:15]} 23. Rxd8+ {[%clk 0:01:31]}  Rxd8 {[%clk 0:01:14]} 24. exf4 {[%clk 0:01:32]}  b6 {[%clk 0:01:10]} 25. Rd1 {[%clk 0:01:30]}  Re8+ {[%clk 0:01:09]} 26. Kf3 {[%clk 0:01:29]}  Re7 {[%clk 0:01:03]} 27. Rd6 {[%clk 0:01:29]}  Kb7 {[%clk 0:01:00]} 28. Rxg6 {[%clk 0:01:29]}  h5 {[%clk 0:00:53]} 29. gxh5 {[%clk 0:01:25]}  Ka6 {[%clk 0:00:52]} 30. h6 {[%clk 0:01:23]}  Ka5 {[%clk 0:00:49]} 31. f5 {[%clk 0:01:23]}  Rf7 {[%clk 0:00:46]} 32. Kg4 {[%clk 0:01:16]}  Ka4 {[%clk 0:00:46]} 33. Rxb6 {[%clk 0:01:14]}  Bf6 {[%clk 0:00:37]} 34. Kh5 {[%clk 0:01:12]}  Rf8 {[%clk 0:00:36]} 35. h7 {[%clk 0:01:11]}  Kb3 {[%clk 0:00:29]} 36. Rxf6 {[%clk 0:01:10]} 1-0

[Event "December 5 Late 2023"]
[Site "https://www.chess.com"]
[Date "2023.12.05"]
[Round "2"]
[White "Dobre, Claudiu-Cristian"]
[Black "Adewumi, Tanitoluwa"]
[Result "1-0"]
[Board "64"]
[TimeControl "180+1"]
[WhiteFideId "1211854"]
[BlackFideId "30966396"]
[WhiteElo "2489"]
[BlackElo "2751"]
[WhiteTeam "ROU"]
[BlackTeam "USA"]
[WhiteClock "0:01:09"]
[BlackClock "0:00:16"]

1. d4 {[%clk 0:03:00]}  Nf6 {[%clk 0:02:46]} 2. Nf3 {[%clk 0:02:59]}  e6 {[%clk 0:02:45]} 3. Bg5 {[%clk 0:02:59]}  h6 {[%clk 0:02:44]} 4. Bh4 {[%clk 0:02:59]}  c5 {[%clk 0:02:42]} 5. c3 {[%clk 0:02:59]}  Nc6 {[%clk 0:02:40]} 6. e3 {[%clk 0:02:58]}  d5 {[%clk 0:02:35]} 7. Nbd2 {[%clk 0:02:58]}  Be7 {[%clk 0:02:33]} 8. Bd3 {[%clk 0:02:57]}  O-O {[%clk 0:02:30]} 9. O-O {[%clk 0:02:54]}  Re8 {[%clk 0:02:26]} 10. Ne5 {[%clk 0:02:46]}  Qc7 {[%clk 0:02:07]} 11. Bxf6 {[%clk 0:02:41]}  Bxf6 {[%clk 0:02:04]} 12. f4 {[%clk 0:02:41]}  Bd8 {[%clk 0:01:37]} 13. Qh5 {[%clk 0:02:40]}  Kf8 {[%clk 0:01:17]} 14. g4 {[%clk 0:02:17]}  cxd4 {[%clk 0:00:33]} 15. exd4 {[%clk 0:02:16]}  f6 {[%clk 0:00:29]} 16. Ng6+ {[%clk 0:02:08]}  Kg8 {[%clk 0:00:29]} 17. h4 {[%clk 0:01:17]}  Qf7 {[%clk 0:00:22]} 18. g5 {[%clk 0:01:13]}  f5 {[%clk 0:00:18]} 19. gxh6 {[%clk 0:01:12]}  Ne7 {[%clk 0:00:16]} 20. h7# {[%clk 0:01:09]} 1-0

[Event "December 5 Late 2023"]
[Site "https://www.chess.com"]
[Date "2023.12.05"]
[Round "2"]
[White "Jarmula, Lukasz"]
[Black "Senft, Sean"]
[Result "1-0"]
[Board "65"]
[TimeControl "180+1"]
[WhiteFideId "1160664"]
[BlackFideId "2044960"]
[WhiteElo "2742"]
[BlackElo "2488"]
[WhiteTeam "POL"]
[BlackTeam "USA"]
[WhiteClock "0:00:17"]
[BlackClock "0:00:04"]

1. e4 {[%clk 0:03:00]}  c5 {[%clk 0:02:59]} 2. Nf3 {[%clk 0:03:00]}  d6 {[%clk 0:02:59]} 3. d4 {[%clk 0:03:00]}  cxd4 {[%clk 0:03:00]} 4. Nxd4 {[%clk 0:03:01]}  Nf6 {[%clk 0:03:00]} 5. Nc3 {[%clk 0:03:02]}  a6 {[%clk 0:03:00]} 6. f3 {[%clk 0:03:02]}  e5 {[%clk 0:03:00]} 7. Nb3 {[%clk 0:03:02]}  Be6 {[%clk 0:03:00]} 8. Be3 {[%clk 0:03:03]}  Be7 {[%clk 0:03:00]} 9. Qd2 {[%clk 0:03:03]}  O-O {[%clk 0:03:01]} 10. O-O-O {[%clk 0:03:03]}  Nbd7 {[%clk 0:03:00]} 11. g4 {[%clk 0:03:03]}  b5 {[%clk 0:03:01]} 12. g5 {[%clk 0:03:03]}  b4 {[%clk 0:03:02]} 13. Ne2 {[%clk 0:03:00]}  Nh5 {[%clk 0:03:02]} 14. Qxb4 {[%clk 0:02:33]}  Bxg5 {[%clk 0:02:58]} 15. Bxg5 {[%clk 0:02:32]}  Qxg5+ {[%clk 0:02:58]} 16. Kb1 {[%clk 0:02:32]}  a5 {[%clk 0:02:12]} 17. Qxd6 {[%clk 0:02:24]}  a4 {[%clk 0:02:12]} 18. Nc5 {[%clk 0:02:22]}  Nxc5 {[%clk 0:02:11]} 19. Qxc5 {[%clk 0:02:22]}  Rfc8 {[%clk 0:02:09]} 20. Qa3 {[%clk 0:02:00]}  Rab8 {[%clk 0:01:48]} 21. Nc3 {[%clk 0:01:42]}  Qe3 {[%clk 0:01:28]} 22. Bd3 {[%clk 0:01:39]}  Nf4 {[%clk 0:01:17]} 23. Rhf1 {[%clk 0:01:31]}  h6 {[%clk 0:01:09]} 24. Nd5 {[%clk 0:01:21]}  Bxd5 {[%clk 0:00:45]} 25. exd5 {[%clk 0:01:19]}  Nxd5 {[%clk 0:00:43]} 26. Ka1 {[%clk 0:01:17]}  Qb6 {[%clk 0:00:34]} 27. Rc1 {[%clk 0:01:01]}  Nb4 {[%clk 0:00:33]} 28. Be4 {[%clk 0:00:59]}  Rc7 {[%clk 0:00:31]} 29. c3 {[%clk 0:00:58]}  Na6 {[%clk 0:00:25]} 30. Rfd1 {[%clk 0:00:54]}  Nc5 {[%clk 0:00:25]} 31. Bd5 {[%clk 0:00:53]}  Ra7 {[%clk 0:00:22]} 32. Kb1 {[%clk 0:00:52]}  Nb3 {[%clk 0:00:12]} 33. axb3 {[%clk 0:00:48]}  axb3 {[%clk 0:00:13]} 34. Qxb3 {[%clk 0:00:48]}  Qc7 {[%clk 0:00:10]} 35. Bxf7+ {[%clk 0:00:46]}  Kf8 {[%clk 0:00:09]} 36. Qc4 {[%clk 0:00:32]}  Qxf7 {[%clk 0:00:09]} 37. Qxf7+ {[%clk 0:00:30]}  Kxf7 {[%clk 0:00:09]} 38. Rd5 {[%clk 0:00:28]}  Kf6 {[%clk 0:00:10]} 39. Re1 {[%clk 0:00:28]}  Rab7 {[%clk 0:00:10]} 40. Re2 {[%clk 0:00:28]}  Re8 {[%clk 0:00:09]} 41. b4 {[%clk 0:00:26]}  g5 {[%clk 0:00:09]} 42. b5 {[%clk 0:00:26]}  Kf5 {[%clk 0:00:09]} 43. c4 {[%clk 0:00:25]}  Kf4 {[%clk 0:00:09]} 44. Re4+ {[%clk 0:00:23]}  Kxf3 {[%clk 0:00:08]} 45. Rexe5 {[%clk 0:00:23]}  Ra8 {[%clk 0:00:06]} 46. Re6 {[%clk 0:00:21]}  Rba7 {[%clk 0:00:05]} 47. Kc2 {[%clk 0:00:16]}  Ra3 {[%clk 0:00:03]} 48. Rd3+ {[%clk 0:00:16]}  Rxd3 {[%clk 0:00:03]} 49. Kxd3 {[%clk 0:00:16]}  Kg2 {[%clk 0:00:03]} 50. b6 {[%clk 0:00:16]}  Kxh2 {[%clk 0:00:04]} 51. c5 {[%clk 0:00:17]}  g4 {[%clk 0:00:04]} 52. b7 {[%clk 0:00:17]}  Rb8 {[%clk 0:00:04]} 53. c6 {[%clk 0:00:18]}  g3 {[%clk 0:00:05]} 54. c7 {[%clk 0:00:18]}  Rxb7 {[%clk 0:00:05]} 55. c8=Q {[%clk 0:00:18]}  Rg7 {[%clk 0:00:04]} 56. Rxh6+ {[%clk 0:00:17]} 1-0